bitfinex-derivatives/quotes_SOLF0:USTF0_20241026
["timestamp","ask_amount","ask_price","bid_price","bid_amount"]
[1729928668281,4.52,167.8,167.72,8.25342199]
[1729928668282,8.25342199,167.77,167.72,8.25342199]
[1729928668574,8.25342199,167.77,167.75,2.9837]
[1729928669483,8.25342199,167.77,167.74,2.9839]
[1729928669683,8.25342199,167.77,167.71,16.77342199]
[1729928669885,11.23782199,167.72,167.51,17.89]
[1729928670082,8.25342199,167.67,167.62,2.986]
[1729928670273,8.25342199,167.67,167.6,8.25342199]
[1729928670678,8.25342199,167.67,167.6,12.77342199]
[1729928671377,8.25342199,167.67,167.63,2.9858]
[1729928673587,2.9843,167.72,167.63,8.25342199]
[1729928673783,8.25342199,167.68,167.65,2.9855]
[1729928674489,4.52,167.71,167.65,2.9855]
[1729928674688,8.25342199,167.68,167.65,2.9855]
[1729928675679,4.52,167.71,167.63,8.25342199]
[1729928675883,8.25342199,167.68,167.66,2.9853]
[1729928680793,4.52,167.71,167.61,2.5701]
[1729928680794,8.25342199,167.67,167.64,2.9855]
[1729928681093,8.25342199,167.67,167.62,8.25342199]
[1729928681491,8.25342199,167.68,167.64,2.9856]
[1729928682892,8.25342199,167.68,167.65,2.9853]
[1729928685592,8.25342199,167.68,167.64,2.9857]
[1729928686697,8.25342199,167.68,167.65,2.9854]
[1729928689297,7.5043,167.72,167.65,2.9854]
[1729928689499,4.52,167.72,167.66,2.9852]
[1729928689698,8.25342199,167.7,167.66,2.9852]
[1729928692103,60.9637,167.76,167.69,2.9847]
[1729928692302,8.25342199,167.72,167.69,2.9847]
[1729928694100,2.98956585,167.75,167.55,17.89]
[1729928694302,8.25342199,167.68,167.63,8.25342199]
[1729928694502,4.58,167.74,167.64,12.83342199]
[1729928694702,8.25342199,167.7,167.64,12.83342199]
[1729928695501,8.25342199,167.71,167.66,8.25342199]
[1729928696007,8.25342199,167.71,167.69,2.9847]
[1729928696910,4.58,167.77,167.68,4.58]
[1729928697116,8.25342199,167.75,167.69,8.25342199]
[1729928698405,8.25342199,167.75,167.71,2.9844]
[1729928699106,3.04072708,167.84,167.69,8.25342199]
[1729928699309,8.25342199,167.75,167.72,2.9842]
[1729928700215,8.25342199,167.73,167.7,2.9845]
[1729928703213,4.58,167.78,167.71,2.9843]
[1729928703415,8.25342199,167.74,167.71,2.9843]
[1729928705407,8.25342199,167.72,167.7,2.9846]
[1729928705612,8.25342199,167.72,167.69,1.3181]
[1729928706214,8.25342199,167.72,167.69,4.3027]
[1729928707914,8.25342199,167.72,167.68,2.9849]
[1729928708115,8.25342199,167.72,167.67,12.83342199]
[1729928708420,8.25342199,167.72,167.68,2.9849]
[1729928708623,8.25342199,167.72,167.67,12.83342199]
[1729928710121,8.25342199,167.72,167.67,8.25342199]
[1729928710416,8.25342199,167.72,167.69,2.9846]
[1729928711021,8.25342199,167.72,167.7,2.9846]
[1729928713023,4.58,167.78,167.69,8.25342199]
[1729928713225,8.25342199,167.73,167.7,2.9846]
[1729928724734,7.5635,167.77,167.7,2.9846]
[1729928724935,8.25342199,167.74,167.7,2.9846]
[1729928732438,8.25342199,167.74,167.67,14.03552199]
[1729928732439,8.25342199,167.74,167.71,2.9844]
[1729928739848,2.983,167.8,167.74,2.9839]
[1729928740046,8.25342199,167.76,167.7,8.25342199]
[1729928742142,8.25342199,167.76,167.73,2.9839]
[1729928742546,7.603,167.8,167.73,2.9839]
[1729928742743,4.62,167.8,167.73,8.25342199]
[1729928742947,8.25342199,167.78,167.73,8.25342199]
[1729928744047,8.25342199,167.78,167.76,2.9834]
[1729928746454,8.25342199,167.78,167.76,2.9835]
[1729928747751,8.25342199,167.77,167.72,1.2294]
[1729928747950,8.25342199,167.74,167.72,1.2294]
[1729928749355,8.25342199,167.74,167.72,4.2136]
[1729928752461,8.25342199,167.74,167.72,2.9842]
[1729928754760,8.25342199,167.75,167.72,2.9842]
[1729928757861,8.25342199,167.76,167.72,2.9842]
[1729928758260,7.603,167.79,167.73,1.49241126]
[1729928758455,8.25342199,167.76,167.72,2.9842]
[1729928758659,8.25342199,167.76,167.73,1.492411]
[1729928758863,8.25342199,167.76,167.72,2.9842]
[1729928759063,8.25342199,167.76,167.73,1.49241126]
[1729928759258,8.25342199,167.76,167.72,2.9842]
[1729928759463,8.25342199,167.76,167.73,1.4924128]
[1729928759762,8.25342199,167.76,167.72,2.9842]
[1729928759969,8.25342199,167.76,167.73,1.4924128]
[1729928760164,8.25342199,167.76,167.72,2.9842]
[1729928760365,8.25342199,167.76,167.73,1.49241126]
[1729928760564,8.25342199,167.76,167.72,2.9842]
[1729928760869,8.25342199,167.76,167.73,1.49240972]
[1729928761064,8.25342199,167.76,167.72,2.9842]
[1729928761371,8.25342199,167.76,167.73,1.4924128]
[1729928761671,8.25342199,167.76,167.72,2.9842]
[1729928761871,8.25342199,167.76,167.73,1.49240976]
[1729928762173,8.25342199,167.76,167.72,2.9842]
[1729928762373,8.25342199,167.76,167.73,4.47651126]
[1729928762669,8.25342199,167.79,167.74,8.25342199]
[1729928762968,8.25342199,167.79,167.75,1.49232287]
[1729928763266,8.25342199,167.79,167.77,2.9833]
[1729928769688,17.89,167.92,167.76,8.25342199]
[1729928769884,57.98,167.94,167.79,8.25342199]
[1729928770191,8.25342199,167.84,167.79,12.77342199]
[1729928771280,8.25342199,167.84,167.81,2.9826]
[1729928772590,8.25342199,167.84,167.8,2.9828]
[1729928774389,8.25342199,167.84,167.8,7.5028]
[1729928774885,8.25342199,167.83,167.8,7.5028]
[1729928775082,2.9819,167.86,167.8,7.5028]
[1729928775289,8.25342199,167.84,167.8,7.5028]
[1729928776385,7.5013,167.89,167.82,2.9823]
[1729928776585,8.25342199,167.86,167.82,2.9823]
[1729928776989,4.52,167.89,167.8,12.77342199]
[1729928777289,8.25342199,167.86,167.8,12.77342199]
[1729928777880,8.25342199,167.86,167.82,2.9823]
[1729928778081,8.25342199,167.89,167.83,8.25342199]
[1729928778483,8.25342199,167.89,167.84,4.52]
[1729928779289,8.25342199,167.89,167.84,7.502]
[1729928784091,248.59709783,167.9,167.84,4.52]
[1729928784596,248.59709783,167.9,167.84,12.77342199]
[1729928784895,256.85051982,167.9,167.85,8.25342199]
[1729928785590,256.85051982,167.9,167.86,2.9818]
[1729928786493,2.9825,167.82,167.81,3.08137913]
[1729928786687,2.9825,167.82,167.6,11.1376591]
[1729928786688,12.77342199,167.82,167.69,16.68803291]
[1729928786882,8.25342199,167.73,167.7,4.57401092]
[1729928787089,8.25342199,167.73,167.71,3.08201395]
[1729928787293,8.25342199,167.73,167.69,3.8606]
[1729928787490,8.25342199,167.73,167.7,3.08304215]
[1729928787690,8.25342199,167.73,167.69,2.5461]
[1729928788593,2.9836,167.76,167.69,2.5461]
[1729928788794,8.25342199,167.73,167.69,2.5461]
[1729928794399,2.9837,167.75,167.69,2.5461]
[1729928794699,8.25342199,167.73,167.69,2.5461]
[1729928801000,8.25342199,167.72,167.69,2.5461]
[1729928801201,8.25342199,167.7,167.69,2.5461]
[1729928807210,4.92,167.78,167.69,2.5461]
[1729928807411,8.25342199,167.75,167.71,2.9844]
[1729928808003,8.25342199,167.74,167.69,10.79952199]
[1729928808211,8.25342199,167.74,167.7,2.9846]
[1729928808910,8.25342199,167.74,167.69,10.79952199]
[1729928809110,8.25342199,167.74,167.71,2.9844]
[1729928810509,2.9832,167.78,167.73,2.9841]
[1729928810707,8.25342199,167.75,167.73,2.9841]
[1729928811704,2.983,167.8,167.74,2.9839]
[1729928811906,8.25342199,167.77,167.74,2.9839]
[1729928813604,8.25342199,167.75,167.74,2.9839]
[1729928815906,8.25342199,167.77,167.74,2.9839]
[1729928816909,2.983,167.8,167.74,2.9839]
[1729928817212,8.25342199,167.76,167.75,2.9837]
[1729928817413,4.74,167.82,167.72,8.25342199]
[1729928817616,8.25342199,167.8,167.74,8.25342199]
[1729928817916,8.25342199,167.8,167.76,2.9834]
[1729928818516,8.25342199,167.78,167.76,2.9834]
[1729928819021,2.9825,167.82,167.76,2.9834]
[1729928819315,8.25342199,167.78,167.76,2.9834]
[1729928820712,2.9825,167.82,167.76,2.9834]
[1729928820920,8.25342199,167.78,167.76,2.9834]
[1729928821120,2.9825,167.82,167.76,2.9834]
[1729928821310,1.2861,167.83,167.77,2.9834]
[1729928821511,7.7222,167.84,167.74,12.99342199]
[1729928821714,8.25342199,167.81,167.75,1.2961]
[1729928823416,8.25342199,167.81,167.77,2.9832]
[1729928826617,8.25342199,167.81,167.75,9.54952199]
[1729928826915,8.25342199,167.81,167.78,2.9832]
[1729928828920,8.25342199,167.81,167.75,1.2961]
[1729928829120,2.9829,167.8,167.75,4.2798]
[1729928829322,8.25342199,167.76,167.75,2.9837]
[1729928832127,8.25342199,167.76,167.73,7.724]
[1729928840924,8.25342199,167.77,167.73,7.724]
[1729928842329,2.9829,167.8,167.74,2.9839]
[1729928842628,8.25342199,167.8,167.73,12.99342199]
[1729928843225,8.25342199,167.8,167.76,2.9835]
[1729928844827,8.25342199,167.82,167.76,8.25342199]
[1729928845032,4.74,167.85,167.77,2.9832]
[1729928845233,8.25342199,167.81,167.76,8.25342199]
[1729928845633,8.25342199,167.81,167.78,2.9832]
[1729928848633,8.25342199,167.79,167.59,13.60608585]
[1729928848836,4.6,167.78,167.62,8.25342199]
[1729928849140,8.25342199,167.68,167.65,2.9853]
[1729928849343,8.25342199,167.68,167.66,3.0830725]
[1729928849537,8.25342199,167.68,167.65,2.9853]
[1729928849740,4.6,167.73,167.66,6.06917233]
[1729928849940,8.25342199,167.7,167.65,12.85342199]
[1729928850141,8.25342199,167.7,167.65,4.6]
[1729928850342,8.25342199,167.7,167.66,3.08408957]
[1729928850541,8.25342199,167.7,167.65,4.6]
[1729928850842,8.25342199,167.7,167.66,3.08414795]
[1729928851036,8.25342199,167.7,167.65,4.6]
[1729928851242,8.25342199,167.7,167.65,7.5855]
[1729928851444,8.25342199,167.7,167.66,3.08446351]
[1729928851643,8.25342199,167.7,167.65,7.5855]
[1729928851844,8.25342199,167.7,167.66,3.08447648]
[1729928852036,8.25342199,167.7,167.65,7.5855]
[1729928852237,8.25342199,167.7,167.66,3.08427039]
[1729928852441,8.25342199,167.7,167.65,7.5855]
[1729928852743,8.25342199,167.7,167.66,3.08488748]
[1729928852946,8.25342199,167.7,167.65,7.5855]
[1729928853146,8.25342199,167.7,167.66,3.08485567]
[1729928853342,8.25342199,167.7,167.65,7.5855]
[1729928853542,7.5841,167.73,167.66,11.33894333]
[1729928853742,8.25342199,167.71,167.66,8.25342199]
[1729928855547,8.25342199,167.71,167.67,3.08795499]
[1729928855737,8.25342199,167.71,167.66,8.25342199]
[1729928855940,8.25342199,167.71,167.67,3.08795451]
[1729928856147,8.25342199,167.71,167.66,11.23872199]
[1729928856335,8.25342199,167.71,167.67,3.08775302]
[1729928856538,8.25342199,167.71,167.66,11.23872199]
[1729928856739,8.25342199,167.71,167.67,3.0876863]
[1729928857047,8.25342199,167.71,167.66,11.23872199]
[1729928857339,8.25342199,167.71,167.67,3.08753453]
[1729928857542,8.25342199,167.71,167.66,11.23872199]
[1729928857751,8.25342199,167.71,167.67,3.08748303]
[1729928858049,8.25342199,167.71,167.66,11.23872199]
[1729928861743,8.25342199,167.71,167.66,8.25342199]
[1729928862746,8.25342199,167.71,167.66,11.23872199]
[1729928863148,2.9844,167.72,167.66,11.23872199]
[1729928863353,8.25342199,167.71,167.66,11.23872199]
[1729928865250,8.25342199,167.71,167.67,2.985]
[1729928865452,1.0279,167.78,167.67,8.25342199]
[1729928865652,11.23712199,167.76,167.69,8.25342199]
[1729928866057,11.23712199,167.76,167.7,2.9846]
[1729928866058,2.9838,167.75,167.7,2.9846]
[1729928868551,8.25342199,167.77,167.73,2.9839]
[1729928868755,8.25342199,167.77,167.71,8.25342199]
[1729928869361,8.25342199,167.75,167.72,2.9842]
[1729928872158,8.25342199,167.75,167.71,2.9844]
[1729928873962,8.25342199,167.75,167.62,138.99833164]
[1729928874156,8.25342199,167.72,167.67,11.23842199]
[1729928874356,8.25342199,167.72,167.68,3.08549679]
[1729928874560,8.25342199,167.72,167.69,3.08549679]
[1729928874763,8.25342199,167.72,167.67,11.23842199]
[1729928874964,8.25342199,167.72,167.68,3.08559635]
[1729928875266,8.25342199,167.72,167.69,3.08559635]
[1729928875566,8.25342199,167.72,167.67,11.23842199]
[1729928875768,8.25342199,167.72,167.68,3.08571407]
[1729928875960,8.25342199,167.72,167.69,3.08571407]
[1729928876267,8.25342199,167.72,167.67,11.23842199]
[1729928876460,8.25342199,167.72,167.68,3.0857902]
[1729928876663,8.25342199,167.72,167.67,11.23842199]
[1729928877165,8.25342199,167.72,167.68,3.08577386]
[1729928877369,8.25342199,167.72,167.68,2.985]
[1729928879063,8.25342199,167.72,167.67,8.25342199]
[1729928879274,8.25342199,167.72,167.67,2.9851]
[1729928879765,8.25342199,167.7,167.62,138.99833164]
[1729928879958,8.25342199,167.7,167.65,2.9854]
[1729928880162,8.25342199,167.7,167.66,3.0858384]
[1729928880369,8.25342199,167.7,167.65,2.9854]
[1729928880570,8.25342199,167.7,167.66,3.08584533]
[1729928880769,8.25342199,167.7,167.65,2.9854]
[1729928881164,8.25342199,167.7,167.66,3.08584529]
[1729928881360,8.25342199,167.7,167.65,2.9854]
[1729928881560,8.25342199,167.7,167.66,3.08572535]
[1729928881766,8.25342199,167.69,167.65,2.9854]
[1729928887275,11.23872199,167.67,167.6,2.9863]
[1729928887577,11.23872199,167.67,167.61,3.08458417]
[1729928887773,11.23872199,167.67,167.62,3.08458417]
[1729928888077,11.23902199,167.65,167.59,8.25342199]
[1729928888378,11.23902199,167.65,167.6,3.08409239]
[1729928888583,11.23902199,167.65,167.59,8.25342199]
[1729928888774,8.25342199,167.65,167.6,6.07051022]
[1729928888972,8.25342199,167.65,167.6,2.9863]
[1729928889278,8.25342199,167.65,167.59,8.25342199]
[1729928889477,8.25342199,167.66,167.61,11.23952199]
[1729928891177,8.25342199,167.66,167.62,2.9859]
[1729928904392,8.25342199,167.66,167.6,8.25342199]
[1729928904591,8.25342199,167.66,167.63,2.9858]
[1729928906388,251.858433,167.7,167.65,2.9855]
[1729928906585,8.25342199,167.68,167.62,8.25342199]
[1729928906787,8.25342199,167.68,167.59,2.70832563]
[1729928906993,4.6,167.69,167.61,8.25342199]
[1729928906994,8.25342199,167.67,167.61,8.25342199]
[1729928908195,8.25342199,167.67,167.63,2.9857]
[1729928908589,8.25342199,167.67,167.61,8.25342199]
[1729928908790,8.25342199,167.67,167.64,2.9856]
[1729928916992,257.12715499,167.7,167.67,2.9851]
[1729928917905,257.12715499,167.7,167.66,2.9853]
[1729928919002,8.25342199,167.69,167.66,2.9853]
[1729928925411,8.25342199,167.68,167.65,1.3126]
[1729928925614,8.25342199,167.66,167.6,4.6]
[1729928925816,8.25342199,167.66,167.61,1.3178]
[1729928926518,8.25342199,167.66,167.62,3.08785259]
[1729928926713,8.25342199,167.66,167.62,2.9859]
[1729928931512,2.985,167.68,167.62,2.9859]
[1729928931719,8.25342199,167.67,167.62,2.9859]
[1729928933621,11.23852199,167.67,167.62,2.9859]
[1729928935920,2.9851,167.67,167.62,2.9859]
[1729928936124,8.25342199,167.66,167.62,2.9859]
[1729928936313,2.9851,167.67,167.62,2.9859]
[1729928936515,8.25342199,167.67,167.63,2.9857]
[1729928938526,260.11175499,167.7,167.66,2.9853]
[1729928938719,257.12715499,167.7,167.65,8.25342199]
[1729928939821,257.12715499,167.7,167.66,3.08949906]
[1729928940121,257.12715499,167.7,167.65,8.25342199]
[1729928940323,257.12715499,167.7,167.63,8.25342199]
[1729928940626,257.12715499,167.7,167.64,4.58333998]
[1729928940825,257.12715499,167.7,167.65,3.09030787]
[1729928941020,257.12715499,167.7,167.63,8.25342199]
[1729928941224,257.12715499,167.7,167.66,2.9852]
[1729928942329,7.5245,167.71,167.66,2.9852]
[1729928942525,8.25342199,167.68,167.66,2.9852]
[1729928944029,8.25342199,167.7,167.66,2.9852]
[1729928944333,2.9845,167.71,167.66,2.9852]
[1729928944532,8.25342199,167.7,167.66,2.9852]
[1729928944727,8.25342199,167.7,167.67,3.09328121]
[1729928944931,8.25342199,167.7,167.66,2.9852]
[1729928945130,8.25342199,167.7,167.67,3.09328322]
[1729928945330,8.25342199,167.7,167.66,2.9852]
[1729928945528,8.25342199,167.7,167.67,3.09393895]
[1729928945728,8.25342199,167.7,167.66,2.9852]
[1729928945930,8.25342199,167.7,167.67,3.09393887]
[1729928946237,8.25342199,167.7,167.66,2.9852]
[1729928946535,8.25342199,167.71,167.68,2.9849]
[1729928946928,8.25342199,167.71,167.66,8.25342199]
[1729928947125,8.25342199,167.71,167.68,2.9848]
[1729928947636,8.25342199,167.69,167.63,2.9858]
[1729928947838,8.25342199,167.67,167.64,4.58802933]
[1729928948029,8.25342199,167.67,167.65,3.09493876]
[1729928948225,8.25342199,167.67,167.63,2.9858]
[1729928948432,8.25342199,167.67,167.64,4.58883602]
[1729928948628,8.25342199,167.67,167.65,3.09569554]
[1729928948827,8.25342199,167.67,167.63,2.9858]
[1729928949042,8.25342199,167.67,167.64,4.5890095]
[1729928949235,8.25342199,167.67,167.65,3.09581763]
[1729928949440,8.25342199,167.67,167.63,2.9858]
[1729928949740,8.25342199,167.67,167.64,3.09589445]
[1729928949935,8.25342199,167.67,167.65,3.09589445]
[1729928950136,8.25342199,167.67,167.63,2.9858]
[1729928950338,8.25342199,167.67,167.64,4.58916122]
[1729928950539,8.25342199,167.67,167.65,3.0959685]
[1729928950740,8.25342199,167.67,167.62,2.986]
[1729928951042,8.25342199,167.67,167.63,4.5893658]
[1729928951234,8.25342199,167.67,167.64,3.09616322]
[1729928951434,8.25342199,167.67,167.65,3.09616322]
[1729928951645,8.25342199,167.67,167.62,2.986]
[1729928951938,8.25342199,167.67,167.63,4.58960105]
[1729928952139,8.25342199,167.67,167.64,3.09639601]
[1729928952437,8.25342199,167.67,167.65,3.09639601]
[1729928952638,8.25342199,167.67,167.62,2.986]
[1729928952839,8.25342199,167.67,167.63,4.58984094]
[1729928953039,8.25342199,167.67,167.64,3.0966366]
[1729928953242,8.25342199,167.67,167.65,3.0966366]
[1729928953441,8.25342199,167.67,167.62,2.986]
[1729928953635,8.25342199,167.67,167.63,4.59010136]
[1729928953931,8.25342199,167.67,167.64,3.09689786]
[1729928954138,8.25342199,167.67,167.65,3.09689786]
[1729928954333,8.25342199,167.67,167.62,2.986]
[1729928954541,8.25342199,167.67,167.63,4.59033336]
[1729928954741,8.25342199,167.67,167.64,4.59033336]
[1729928954939,8.25342199,167.67,167.65,3.09714445]
[1729928955142,8.25342199,167.67,167.62,2.986]
[1729928955344,8.25342199,167.67,167.63,4.59064426]
[1729928955646,8.25342199,167.67,167.64,3.09745251]
[1729928955845,8.25342199,167.67,167.65,3.09745251]
[1729928956048,8.25342199,167.67,167.62,2.986]
[1729928956238,8.25342199,167.67,167.63,4.59101041]
[1729928956439,8.25342199,167.67,167.64,3.09779613]
[1729928956642,8.25342199,167.67,167.65,3.09779613]
[1729928956842,8.25342199,167.67,167.63,2.9858]
[1729928957150,8.25342199,167.67,167.64,3.09779439]
[1729928957341,8.25342199,167.67,167.65,3.09779439]
[1729928957646,8.25342199,167.67,167.63,2.9858]
[1729928957847,8.25342199,167.67,167.64,3.09781543]
[1729928958048,8.25342199,167.67,167.65,3.09781543]
[1729928958346,8.25342199,167.67,167.63,2.9858]
[1729928958545,8.25342199,167.67,167.64,3.09784913]
[1729928958752,8.25342199,167.67,167.65,3.09784913]
[1729928959053,8.25342199,167.67,167.63,2.9858]
[1729928959349,8.25342199,167.67,167.64,3.0978728]
[1729928959537,2.985,167.68,167.65,3.0978728]
[1729928959852,11.23882199,167.66,167.6,7.5062]
[1729928960048,8.25342199,167.64,167.61,4.59117613]
[1729928960247,8.25342199,167.64,167.62,4.59112008]
[1729928960449,8.25342199,167.64,167.63,1.49325316]
[1729928960648,8.25342199,167.64,167.63,4.59115577]
[1729928961953,2.9855,167.65,167.63,4.59115577]
[1729928962149,8.25342199,167.64,167.56,1.2101]
[1729928962450,8.25342199,167.58,167.57,4.59150104]
[1729928963750,8.25342199,167.58,167.57,3.09811999]
[1729928963956,8.25342199,167.58,167.57,4.59179855]
[1729928964950,7.5267,167.58,167.57,3.56149855]
[1729928965147,7.5267,167.58,167.34,342.3831227]
[1729928965148,12.79342199,167.58,167.34,342.3831227]
[1729928965344,8.25342199,167.48,167.42,8.25342199]
[1729928965549,8.25342199,167.5,167.43,9.74795496]
[1729928965745,8.25342199,167.5,167.47,2.9886]
[1729928965950,8.25342199,167.5,167.48,1.49453297]
[1729928966148,8.25342199,167.5,167.49,1.49453297]
[1729928966343,8.25342199,167.5,167.47,2.9886]
[1729928966751,8.25342199,167.5,167.48,1.49441942]
[1729928966955,8.25342199,167.5,167.46,2.9889]
[1729928967158,8.25342199,167.5,167.47,1.49441944]
[1729928967354,8.25342199,167.5,167.46,2.9889]
[1729928967853,8.25342199,167.5,167.47,2.9886]
[1729928968051,8.25342199,167.52,167.46,8.25342199]
[1729928968259,8.25342199,167.5,167.45,8.25342199]
[1729928968854,4.6,167.53,167.47,2.9886]
[1729928969053,8.25342199,167.52,167.47,2.9886]
[1729928969653,8.25342199,167.52,167.48,2.9885]
[1729928970957,8.25342199,167.52,167.49,2.9882]
[1729928971557,3.01399474,167.63,167.48,8.25342199]
[1729928971761,3.01399474,167.63,167.47,4.6]
[1729928971762,8.25342199,167.55,167.51,2.9879]
[1729928972757,8.25342199,167.53,167.48,2.9885]
[1729928974562,4.6,167.57,167.47,8.25342199]
[1729928974563,2.9871,167.56,167.49,2.9882]
[1729928974862,8.25342199,167.53,167.49,2.9882]
[1729928975359,8.25342199,167.53,167.5,2.9881]
[1729928975560,4.6,167.57,167.5,2.9881]
[1729928975561,8.25342199,167.54,167.5,2.9881]
[1729928978560,8.25342199,167.54,167.51,2.988]
[1729928979965,8.25342199,167.55,167.52,2.9876]
[1729928980763,4.6,167.57,167.5,8.25342199]
[1729928980965,8.25342199,167.56,167.52,2.9878]
[1729928981963,8.25342199,167.56,167.51,2.988]
[1729928982364,8.25342199,167.55,167.51,2.988]
[1729928983666,4.6,167.57,167.49,1.2178]
[1729928983868,8.25342199,167.55,167.52,2.9877]
[1729928986864,8.25342199,167.55,167.49,1.2178]
[1729928987066,8.25342199,167.55,167.51,2.988]
[1729928992273,8.25342199,167.52,167.45,1.2113]
[1729928992568,8.25342199,167.5,167.45,1.2113]
[1729928992980,8.25342199,167.5,167.48,2.9885]
[1729928994670,4.6,167.52,167.5,2.9881]
[1729928995065,8.25342199,167.53,167.5,2.9881]
[1729928998775,8.25342199,167.54,167.47,8.25342199]
[1729928998973,75.95,167.66,167.45,1.2113]
[1729928998974,4.56,167.56,167.52,2.9877]
[1729928999179,8.25342199,167.55,167.52,2.9877]
[1729928999374,8.25342199,167.53,167.48,14.05122199]
[1729929000281,253.62892915,167.57,167.48,8.7862]
[1729929000282,8.25342199,167.52,167.48,8.7862]
[1729929000476,8.25342199,167.52,167.48,4.2262]
[1729929001484,8.25342199,167.52,167.49,2.9883]
[1729929001784,8.25342199,167.52,167.48,1.2378]
[1729929002079,8.25342199,167.49,167.45,1.2113]
[1729929002478,8.25342199,167.49,167.46,2.9888]
[1729929004281,8.25342199,167.47,167.43,2.9893]
[1729929004486,8.25342199,167.47,167.41,9.56482199]
[1729929005080,8.25342199,167.47,167.43,2.9893]
[1729929005388,8.25342199,167.46,167.43,2.9893]
[1729929005584,249.06892915,167.57,167.35,1.2322]
[1729929005585,8.25342199,167.44,167.35,1.2322]
[1729929005789,17.93,167.53,167.35,1.2322]
[1729929005790,8.25342199,167.4,167.35,10.78422199]
[1729929006283,4.56,167.46,167.38,8.25342199]
[1729929006489,4.56,167.46,167.39,8.25342199]
[1729929006490,8.25342199,167.45,167.39,8.25342199]
[1729929006694,8.25342199,167.45,167.42,2.9896]
[1729929006983,4.56,167.51,167.43,8.25342199]
[1729929007189,4.56,167.51,167.42,4.56]
[1729929007490,8.25342199,167.46,167.43,2.9894]
[1729929007892,8.25342199,167.48,167.45,2.989]
[1729929008285,8.25342199,167.48,167.42,12.81342199]
[1729929008480,8.25342199,167.48,167.43,2.9894]
[1729929011591,8.25342199,167.48,167.42,4.56]
[1729929011792,8.25342199,167.48,167.45,2.989]
[1729929014190,4.56,167.47,167.41,2.5634]
[1729929014390,8.25342199,167.44,167.43,2.9893]
[1729929016398,12.81342199,167.44,167.43,2.9893]
[1729929017298,12.81342199,167.44,167.39,8.25342199]
[1729929017496,12.81342199,167.44,167.42,2.9896]
[1729929019801,8.25342199,167.44,167.42,2.9896]
[1729929020103,4.56,167.44,167.42,2.9896]
[1729929020401,8.25342199,167.46,167.42,2.9896]
[1729929020602,4.56,167.46,167.42,11.24302199]
[1729929021798,12.81342199,167.46,167.41,8.25342199]
[1729929022100,8.25342199,167.43,167.36,2.5738]
[1729929022298,8.25342199,167.43,167.38,8.25342199]
[1729929022493,58.06,167.54,167.37,2.9903]
[1729929022494,8.25342199,167.41,167.37,2.9903]
[1729929022694,8.25342199,167.41,167.36,10.82722199]
[1729929022695,8.25342199,167.41,167.36,2.5738]
[1729929022901,8.25342199,167.4,167.36,2.5738]
[1729929023096,8.25342199,167.37,167.25,4.56]
[1729929023303,4.56,167.36,167.3,8.25342199]
[1729929023602,20.95680393,167.48,167.26,3.745]
[1729929023603,8.25342199,167.38,167.31,8.25342199]
[1729929023801,8.25342199,167.41,167.34,8.25342199]
[1729929024006,8.25342199,167.41,167.36,11.24402199]
[1729929024191,58.08,167.47,167.36,8.25342199]
[1729929024395,8.25342199,167.42,167.36,8.25342199]
[1729929026302,4.56,167.43,167.33,7.0569]
[1729929026303,8.25342199,167.41,167.33,7.0569]
[1729929026504,8.25342199,167.41,167.35,8.25342199]
[1729929026902,8.25342199,167.41,167.36,2.9905]
[1729929027098,8.25342199,167.41,167.35,8.25342199]
[1729929028405,8.25342199,167.41,167.36,8.25342199]
[1729929028607,58.08,167.52,167.38,8.25342199]
[1729929028906,8.25342199,167.44,167.39,9.49252199]
[1729929029301,8.25342199,167.44,167.39,12.48262199]
[1729929030200,8.25342199,167.44,167.39,4.2292]
[1729929030506,8.25342199,167.43,167.39,4.2292]
[1729929030702,8.25342199,167.44,167.39,9.49252199]
[1729929031401,8.25342199,167.44,167.4,1.2173]
[1729929031895,8.25342199,167.44,167.41,2.9898]
[1729929032705,58.08,167.52,167.4,1.2173]
[1729929032912,2.9883,167.5,167.42,2.9894]
[1729929033104,8.25342199,167.47,167.42,2.9894]
[1729929034708,20.92230152,167.59,167.4,10.67992199]
[1729929034709,3.02903967,167.72,167.46,8.25342199]
[1729929034909,8.25342199,167.56,167.5,8.25342199]
[1729929035110,8.25342199,167.56,167.51,4.6]
[1729929036113,8.25342199,167.55,167.51,4.6]
[1729929036308,4.6,167.63,167.51,4.6]
[1729929036504,12.91692496,167.58,167.51,4.6]
[1729929038312,4.6,167.63,167.47,3.771]